[Event "ONJK DE"]
[Site "Enschede, Netherlands"]
[Date "2022.08.13"]
[Round "12.1"]
[White "Groenewoud, Joel"]
[Black "De Wit, Evan"]
[Result "1-0"]
[TimeControl "40min + 30sec/move"]
[WhiteElo "1497"]
[BlackElo "1001"]

1. e4 {[%clk 00:40:59]} c5 {[%clk 00:40:55]} {[%emt 00:00:06]} 2. Nf3 {[%clk
00:41:25]} {[%emt 00:00:04]} d6 {[%clk 00:41:20]} {[%emt 00:00:05]} 3. d4
{[%clk 00:41:50]} {[%emt 00:00:05]} cxd4 {[%clk 00:41:44]} {[%emt 00:00:05]} 4.
Nxd4 {[%clk 00:42:18]} {[%emt 00:00:02]} Nf6 {[%clk 00:42:03]} {[%emt
00:00:11]} 5. Nc3 {[%clk 00:42:45]} {[%emt 00:00:04]} a6 {[%clk 00:42:28]}
{[%emt 00:00:05]} 6. f3 {[%clk 00:43:12]} {[%emt 00:00:03]} e6 {[%clk
00:42:46]} {[%emt 00:00:11]} 7. Be3 {[%clk 00:43:37]} {[%emt 00:00:05]} b5
{[%clk 00:42:36]} {[%emt 00:00:40]} 8. g4 {[%clk 00:43:47]} {[%emt 00:00:20]}
Bb7 {[%clk 00:42:06]} {[%emt 00:01:01]} 9. Qd2 {[%clk 00:43:48]} {[%emt
00:00:29]} Nc6 {[%clk 00:41:53]} {[%emt 00:00:43]} 10. g5 {[%clk 00:43:21]}
{[%emt 00:00:57]} Nxd4 {[%clk 00:42:07]} {[%emt 00:00:16]} 11. Qxd4 {[%clk
00:42:55]} {[%emt 00:00:55]} Nd7 {[%clk 00:40:43]} {[%emt 00:01:54]} 12. h4
{[%clk 00:39:12]} {[%emt 00:04:13]} Ne5 {[%clk 00:39:00]} {[%emt 00:02:13]} 13.
Be2 {[%clk 00:36:24]} {[%emt 00:03:18]} Rc8 {[%clk 00:36:46]} {[%emt 00:02:44]}
14. a4 {[%clk 00:29:39]} {[%emt 00:07:16]} Nc6 {[%clk 00:36:36]} {[%emt
00:00:39]} 15. Qd2 {[%clk 00:27:21]} {[%emt 00:02:48]} b4 {[%clk 00:35:00]}
{[%emt 00:02:06]} 16. Na2 {[%clk 00:23:48]} {[%emt 00:04:03]} d5 {[%clk
00:35:12]} {[%emt 00:00:18]} 17. exd5 {[%clk 00:22:11]} {[%emt 00:02:07]} exd5
{[%clk 00:33:48]} {[%emt 00:01:53]} 18. Rd1 {[%clk 00:20:37]} {[%emt 00:02:05]}
Bd6 {[%clk 00:32:14]} {[%emt 00:02:04]} 19. Bf4 {[%clk 00:19:20]} {[%emt
00:01:47]} d4 {[%clk 00:26:14]} {[%emt 00:06:30]} 20. Nc1 {[%clk 00:14:43]}
{[%emt 00:05:07]} O-O {[%clk 00:25:49]} {[%emt 00:00:55]} 21. Nb3 {[%clk
00:14:29]} {[%emt 00:00:45]} Qe7 {[%clk 00:24:56]} {[%emt 00:01:22]} 22. Kf2
{[%clk 00:13:09]} {[%emt 00:01:50]} Bc5 {[%clk 00:24:23]} {[%emt 00:01:03]} 23.
Kg2 {[%clk 00:10:41]} {[%emt 00:02:58]} Ba7 {[%clk 00:23:03]} {[%emt 00:01:49]}
24. Rhe1 {[%clk 00:10:03]} {[%emt 00:01:08]} Qd7 {[%clk 00:21:01]} {[%emt
00:02:32]} 25. Bd3 {[%clk 00:08:56]} {[%emt 00:01:38]} f5 {[%clk 00:19:09]}
{[%emt 00:02:22]} 26. Bc4+ {[%clk 00:07:52]} {[%emt 00:01:35]} Kh8 {[%clk
00:19:06]} {[%emt 00:00:32]} 27. Be6 {[%clk 00:07:17]} {[%emt 00:01:06]} Qd8
{[%clk 00:16:08]} {[%emt 00:03:28]} 28. Bxc8 {[%clk 00:07:14]} {[%emt
00:00:33]} Qxc8 {[%clk 00:16:21]} {[%emt 00:00:16]} 29. Bd6 {[%clk 00:05:03]}
{[%emt 00:02:42]} Rg8 {[%clk 00:15:24]} {[%emt 00:01:26]} 30. Bc5 {[%clk
00:05:12]} {[%emt 00:00:21]} Bxc5 {[%clk 00:14:18]} {[%emt 00:01:37]} 31. Nxc5
{[%clk 00:05:30]} {[%emt 00:00:11]} Ba8 {[%clk 00:14:39]} {[%emt 00:00:08]} 32.
Ne6 {[%clk 00:04:09]} {[%emt 00:01:52]} Na5 {[%clk 00:13:49]} {[%emt 00:01:20]}
33. Qxd4 {[%clk 00:02:48]} {[%emt 00:01:51]} Qxc2+ {[%clk 00:13:22]} {[%emt
00:00:58]} 34. Rd2 {[%clk 00:02:34]} {[%emt 00:00:43]} Qc6 {[%clk 00:13:12]}
{[%emt 00:00:40]} 35. Rf2 {[%clk 00:01:33]} {[%emt 00:01:31]} Qxa4 {[%clk
00:12:16]} {[%emt 00:01:25]} 36. Nxg7 {[%clk 00:40:30]} {[%emt 00:03:12]} 1-0

[Event "ONJK DE"]
[Site "Enschede, Netherlands"]
[Date "2022.08.13"]
[Round "12.2"]
[White "Terlouw, Wouter"]
[Black "Decraene, Lotus"]
[Result "1/2-1/2"]
[TimeControl "40min + 30sec/move"]
[WhiteElo "1720"]
[BlackElo "1332"]

1. d4 {[%clk 00:40:58]} {[%emt 00:00:02]} d5 {[%clk 00:40:17]} {[%emt
00:00:43]} 2. c4 {[%clk 00:41:21]} {[%emt 00:00:07]} e6 {[%clk 00:40:25]}
{[%emt 00:00:23]} 3. Nc3 {[%clk 00:41:43]} {[%emt 00:00:08]} Nf6 {[%clk
00:40:40]} {[%emt 00:00:15]} 4. cxd5 {[%clk 00:42:08]} {[%emt 00:00:05]} exd5
{[%clk 00:41:08]} {[%emt 00:00:02]} 5. Bg5 {[%clk 00:42:28]} {[%emt 00:00:09]}
Be7 {[%clk 00:41:21]} {[%emt 00:00:18]} 6. e3 {[%clk 00:42:44]} {[%emt
00:00:13]} O-O {[%clk 00:41:28]} {[%emt 00:00:23]} 7. Bd3 {[%clk 00:43:02]}
{[%emt 00:00:11]} Nbd7 {[%clk 00:41:27]} {[%emt 00:00:32]} 8. Nf3 {[%clk
00:43:18]} {[%emt 00:00:14]} c6 {[%clk 00:41:48]} {[%emt 00:00:10]} 9. O-O
{[%clk 00:43:38]} {[%emt 00:00:09]} Re8 {[%clk 00:42:01]} {[%emt 00:00:18]} 10.
Rb1 {[%clk 00:43:53]} {[%emt 00:00:15]} a5 {[%clk 00:42:01]} {[%emt 00:00:31]}
11. a3 {[%clk 00:43:37]} {[%emt 00:00:46]} Nf8 {[%clk 00:42:16]} {[%emt
00:00:15]} 12. b4 {[%clk 00:41:56]} {[%emt 00:02:10]} Ne4 {[%clk 00:35:30]}
{[%emt 00:07:16]} 13. Bxe7 {[%clk 00:38:23]} {[%emt 00:04:03]} Qxe7 {[%clk
00:34:12]} {[%emt 00:01:48]} 14. Qc2 {[%clk 00:37:25]} {[%emt 00:01:27]} f5
{[%clk 00:30:43]} {[%emt 00:04:00]} 15. Na4 {[%clk 00:35:19]} {[%emt 00:02:32]}
axb4 {[%clk 00:27:26]} {[%emt 00:03:52]} 16. axb4 {[%clk 00:35:24]} {[%emt
00:00:24]} Rxa4 {[%clk 00:27:41]} {[%emt 00:00:16]} 17. Qxa4 {[%clk 00:35:39]}
{[%emt 00:00:15]} Nc3 {[%clk 00:28:03]} {[%emt 00:00:07]} 18. Qc2 {[%clk
00:35:45]} {[%emt 00:00:22]} Nxb1 {[%clk 00:28:31]} {[%emt 00:00:05]} 19. Rxb1
{[%clk 00:36:07]} {[%emt 00:00:08]} g6 {[%clk 00:26:46]} {[%emt 00:02:15]} 20.
Qc5 {[%clk 00:32:27]} {[%emt 00:04:09]} Qxc5 {[%clk 00:25:20]} {[%emt
00:01:56]} 21. bxc5 {[%clk 00:32:39]} {[%emt 00:00:18]} Nd7 {[%clk 00:24:54]}
{[%emt 00:00:56]} 22. Kf1 {[%clk 00:29:21]} {[%emt 00:03:47]} Nf6 {[%clk
00:25:16]} {[%emt 00:00:09]} 23. Ne5 {[%clk 00:28:24]} {[%emt 00:01:20]} Ne4
{[%clk 00:25:38]} {[%emt 00:00:16]} 24. Bxe4 {[%clk 00:28:22]} {[%emt
00:00:32]} fxe4 {[%clk 00:25:44]} {[%emt 00:00:24]} 25. Ke1 {[%clk 00:27:55]}
{[%emt 00:00:53]} Kg7 {[%clk 00:24:19]} {[%emt 00:00:48]} 26. Ra1 {[%clk
00:25:11]} {[%emt 00:04:24]} Kf6 {[%clk 00:24:10]} {[%emt 00:00:38]} 27. h3
{[%clk 00:24:56]} {[%emt 00:00:46]} Ke7 {[%clk 00:22:52]} {[%emt 00:01:44]} 28.
Ra7 {[%clk 00:24:42]} {[%emt 00:00:49]} Kd8 {[%clk 00:21:32]} {[%emt 00:01:49]}
29. Nf7+ {[%clk 00:23:58]} {[%emt 00:01:14]} Kc7 {[%clk 00:21:53]} {[%emt
00:00:09]} 30. Ng5 {[%clk 00:21:13]} {[%emt 00:03:08]} Re7 {[%clk 00:22:13]}
{[%emt 00:00:17]} 31. h4 {[%clk 00:20:15]} {[%emt 00:01:28]} h6 {[%clk
00:22:05]} {[%emt 00:00:39]} 32. Nh3 {[%clk 00:20:37]} {[%emt 00:00:07]} Bxh3
{[%clk 00:21:49]} {[%emt 00:00:47]} 33. gxh3 {[%clk 00:19:57]} {[%emt
00:01:10]} Kb8 {[%clk 00:21:56]} {[%emt 00:00:23]} 34. Ra2 {[%clk 00:20:00]}
{[%emt 00:00:25]} Rf7 {[%clk 00:22:23]} {[%emt 00:00:05]} 35. Kf1 {[%clk
00:20:14]} {[%emt 00:00:15]} Rf3 {[%clk 00:22:15]} {[%emt 00:00:38]} 36. Kg2
{[%clk 00:20:32]} {[%emt 00:00:12]} h5 {[%clk 00:21:17]} {[%emt 00:01:28]} 37.
Ra1 {[%clk 00:20:40]} {[%emt 00:00:22]} Rf6 {[%clk 00:20:31]} {[%emt 00:01:04]}
38. Ra2 {[%clk 00:20:57]} {[%emt 00:00:26]} Rf3 {[%clk 00:20:56]} {[%emt
00:00:05]} 39. Ra1 {[%clk 00:21:14]} {[%emt 00:00:12]} 1/2-1/2

[Event "ONJK DE"]
[Site "Enschede, Netherlands"]
[Date "2022.08.13"]
[Round "12.3"]
[White "Frederiks, Jesse"]
[Black "Van Haaften, Jelle"]
[Result "1-0"]
[TimeControl "40min + 30sec/move"]
[WhiteElo "1302"]
[BlackElo "992"]

1. d4 {[%clk 00:40:58]} {[%emt 00:00:01]} e6 {[%clk 00:40:59]} {[%emt
00:00:02]} 2. c4 {[%clk 00:41:22]} {[%emt 00:00:06]} c5 {[%clk 00:41:23]}
{[%emt 00:00:06]} 3. Nf3 {[%clk 00:41:19]} {[%emt 00:00:33]} Nf6 {[%clk
00:41:42]} {[%emt 00:00:11]} 4. Bg5 {[%clk 00:41:32]} {[%emt 00:00:17]} h6
{[%clk 00:41:57]} {[%emt 00:00:14]} 5. Bh4 {[%clk 00:41:50]} {[%emt 00:00:12]}
g5 {[%clk 00:41:36]} {[%emt 00:00:51]} 6. Bg3 {[%clk 00:42:08]} {[%emt
00:00:11]} cxd4 {[%clk 00:41:39]} {[%emt 00:00:28]} 7. Nxd4 {[%clk 00:42:01]}
{[%emt 00:00:37]} Nc6 {[%clk 00:41:58]} {[%emt 00:00:11]} 8. e3 {[%clk
00:41:18]} {[%emt 00:01:12]} Bb4+ {[%clk 00:41:59]} {[%emt 00:00:30]} 9. Nc3
{[%clk 00:40:52]} {[%emt 00:00:56]} e5 {[%clk 00:40:24]} {[%emt 00:02:05]} 10.
Nxc6 {[%clk 00:39:44]} {[%emt 00:01:37]} Bxc3+ {[%clk 00:40:11]} {[%emt
00:00:44]} 11. bxc3 {[%clk 00:40:06]} {[%emt 00:00:08]} bxc6 {[%clk 00:40:15]}
{[%emt 00:00:25]} 12. Bxe5 {[%clk 00:40:17]} {[%emt 00:00:19]} Qe7 {[%clk
00:40:37]} {[%emt 00:00:09]} 13. Qd4 {[%clk 00:39:20]} {[%emt 00:01:26]} c5
{[%clk 00:40:10]} {[%emt 00:00:58]} 14. Bxf6 {[%clk 00:39:29]} {[%emt
00:00:21]} cxd4 {[%clk 00:40:33]} {[%emt 00:00:07]} 15. Bxe7 {[%clk 00:39:55]}
{[%emt 00:00:05]} Kxe7 {[%clk 00:40:48]} {[%emt 00:00:14]} 16. cxd4 {[%clk
00:40:18]} {[%emt 00:00:06]} Ba6 {[%clk 00:41:08]} {[%emt 00:00:11]} 17. Be2
{[%clk 00:39:21]} {[%emt 00:01:26]} Rac8 {[%clk 00:41:26]} {[%emt 00:00:13]} 18.
c5 {[%clk 00:38:42]} {[%emt 00:01:09]} Bxe2 {[%clk 00:41:52]} {[%emt 00:00:04]}
19. Kxe2 {[%clk 00:39:07]} {[%emt 00:00:05]} d6 {[%clk 00:41:55]} {[%emt
00:00:27]} 20. cxd6+ {[%clk 00:39:07]} {[%emt 00:00:30]} Kxd6 {[%clk 00:42:19]}
{[%emt 00:00:05]} 21. Rhc1 {[%clk 00:39:15]} {[%emt 00:00:23]} Rhe8 {[%clk
00:41:51]} {[%emt 00:00:58]} 22. Kd2 {[%clk 00:38:42]} {[%emt 00:01:03]} Rb8
{[%clk 00:41:24]} {[%emt 00:00:56]} 23. Rab1 {[%clk 00:38:40]} {[%emt
00:00:32]} f5 {[%clk 00:41:28]} {[%emt 00:00:26]} 24. Rb3 {[%clk 00:38:09]}
{[%emt 00:01:01]} Rxb3 {[%clk 00:41:14]} {[%emt 00:00:45]} 25. axb3 {[%clk
00:38:33]} {[%emt 00:00:06]} Rb8 {[%clk 00:41:39]} {[%emt 00:00:05]} 26. Rc3
{[%clk 00:38:09]} {[%emt 00:00:53]} Rb6 {[%clk 00:41:47]} {[%emt 00:00:22]} 27.
Kd3 {[%clk 00:37:58]} {[%emt 00:00:41]} Ra6 {[%clk 00:42:01]} {[%emt 00:00:17]}
28. Rc5 {[%clk 00:35:26]} {[%emt 00:03:02]} f4 {[%clk 00:42:01]} {[%emt
00:00:30]} 29. exf4 {[%clk 00:35:15]} {[%emt 00:00:41]} gxf4 {[%clk 00:42:28]}
{[%emt 00:00:02]} 30. Rf5 {[%clk 00:34:46]} {[%emt 00:00:59]} Rb6 {[%clk
00:42:19]} {[%emt 00:00:40]} 31. Rf6+ {[%clk 00:34:31]} {[%emt 00:00:42]} Kc7
{[%clk 00:42:11]} {[%emt 00:00:40]} 32. Rxb6 {[%clk 00:34:56]} {[%emt
00:00:06]} Kxb6 {[%clk 00:42:28]} {[%emt 00:00:13]} 33. Kc4 {[%clk 00:35:12]}
{[%emt 00:00:14]} Kc6 {[%clk 00:42:41]} {[%emt 00:00:17]} 34. d5+ {[%clk
00:35:25]} {[%emt 00:00:17]} Kd6 {[%clk 00:43:07]} {[%emt 00:00:03]} 35. Kd4
{[%clk 00:35:30]} {[%emt 00:00:26]} a5 {[%clk 00:43:22]} {[%emt 00:00:15]} 36.
h4 {[%clk 00:35:38]} {[%emt 00:00:22]} h5 {[%clk 00:43:40]} {[%emt 00:00:12]}
37. f3 {[%clk 00:35:51]} {[%emt 00:00:17]} 1-0

[Event "ONJK DE"]
[Site "Enschede, Netherlands"]
[Date "2022.08.13"]
[Round "12.4"]
[White "Dijkhuijsen, Thomas"]
[Black "Declerck, Adriaan"]
[Result "1-0"]
[TimeControl "40min + 30sec/move"]
[WhiteElo "1306"]
[BlackElo "1371"]

1. e4 {[%emt 15:40:52]} c5 {[%clk 00:40:53]} {[%emt 00:00:06]} 2. Nf3 {[%clk
00:41:23]} {[%emt 00:00:04]} Nc6 {[%clk 00:41:20]} {[%emt 00:00:04]} 3. d4
{[%clk 00:41:48]} {[%emt 00:00:04]} cxd4 {[%clk 00:41:49]} {[%emt 00:00:02]} 4.
Nxd4 {[%clk 00:42:09]} {[%emt 00:00:09]} Nf6 {[%clk 00:42:18]} {[%emt
00:00:01]} 5. Nxc6 {[%clk 00:42:17]} {[%emt 00:00:22]} bxc6 {[%clk 00:42:44]}
{[%emt 00:00:04]} 6. e5 {[%clk 00:42:42]} {[%emt 00:00:05]} Nd5 {[%clk
00:43:11]} {[%emt 00:00:03]} 7. c4 {[%clk 00:42:43]} {[%emt 00:00:30]} Nb6
{[%clk 00:43:36]} {[%emt 00:00:05]} 8. Nc3 {[%clk 00:42:58]} {[%emt 00:00:14]}
d6 {[%clk 00:43:56]} {[%emt 00:00:09]} 9. Bf4 {[%clk 00:42:50]} {[%emt
00:00:39]} d5 {[%clk 00:43:22]} {[%emt 00:01:04]} 10. cxd5 {[%clk 00:42:13]}
{[%emt 00:01:07]} Nxd5 {[%clk 00:43:31]} {[%emt 00:00:22]} 11. Nxd5 {[%clk
00:41:48]} {[%emt 00:00:54]} Qxd5 {[%clk 00:43:52]} {[%emt 00:00:09]} 12. Qxd5
{[%clk 00:41:43]} {[%emt 00:00:35]} cxd5 {[%clk 00:44:20]} {[%emt 00:00:02]} 13.
Bb5+ {[%clk 00:42:05]} {[%emt 00:00:08]} Bd7 {[%clk 00:44:33]} {[%emt
00:00:17]} 14. Bxd7+ {[%clk 00:41:39]} {[%emt 00:00:57]} Kxd7 {[%clk 00:45:01]}
{[%emt 00:00:02]} 15. O-O {[%clk 00:41:53]} {[%emt 00:00:15]} e6 {[%clk
00:45:24]} {[%emt 00:00:08]} 16. Be3 {[%clk 00:42:02]} {[%emt 00:00:21]} a6
{[%clk 00:45:32]} {[%emt 00:00:23]} 17. f4 {[%clk 00:42:17]} {[%emt 00:00:14]}
Be7 {[%clk 00:45:55]} {[%emt 00:00:07]} 18. Rac1 {[%clk 00:41:38]} {[%emt
00:01:07]} Rhc8 {[%clk 00:46:10]} {[%emt 00:00:17]} 19. Rfd1 {[%clk 00:40:54]}
{[%emt 00:01:13]} Rab8 {[%clk 00:46:11]} {[%emt 00:00:30]} 20. Bd4 {[%clk
00:40:50]} {[%emt 00:00:33]} Rb4 {[%clk 00:45:31]} {[%emt 00:01:11]} 21. Rxc8
{[%clk 00:40:19]} {[%emt 00:01:01]} Kxc8 {[%clk 00:45:15]} {[%emt 00:00:47]} 22.
Kf2 {[%clk 00:40:30]} {[%emt 00:00:18]} Rxd4 {[%clk 00:44:51]} {[%emt
00:00:54]} 23. Rxd4 {[%clk 00:40:47]} {[%emt 00:00:12]} Bc5 {[%clk 00:45:17]}
{[%emt 00:00:05]} 24. Ke3 {[%clk 00:41:04]} {[%emt 00:00:13]} Kc7 {[%clk
00:45:43]} {[%emt 00:00:05]} 25. Kd3 {[%clk 00:41:14]} {[%emt 00:00:19]} Bxd4
{[%clk 00:46:09]} {[%emt 00:00:05]} 26. Kxd4 {[%clk 00:41:35]} {[%emt
00:00:09]} Kc6 {[%clk 00:46:35]} {[%emt 00:00:04]} 27. a4 {[%clk 00:41:31]}
{[%emt 00:00:34]} a5 {[%clk 00:46:02]} {[%emt 00:01:03]} 28. g4 {[%clk
00:41:27]} {[%emt 00:00:34]} f6 {[%clk 00:46:04]} {[%emt 00:00:28]} 29. h4
{[%clk 00:38:50]} {[%emt 00:03:06]} fxe5+ {[%clk 00:45:05]} {[%emt 00:01:30]}
30. Kxe5 {[%clk 00:34:47]} {[%emt 00:04:33]} Kc5 {[%clk 00:42:56]} {[%emt
00:02:40]} 31. h5 {[%clk 00:32:37]} {[%emt 00:02:39]} d4 {[%clk 00:41:27]}
{[%emt 00:01:59]} 32. h6 {[%clk 00:30:22]} {[%emt 00:02:45]} g6 {[%clk
00:40:48]} {[%emt 00:01:09]} 33. Ke4 {[%clk 00:26:47]} {[%emt 00:04:05]} Kc4
{[%clk 00:37:00]} {[%emt 00:04:18]} 34. g5 {[%clk 00:26:33]} {[%emt 00:00:44]}
d3 {[%clk 00:36:05]} {[%emt 00:01:25]} 35. Ke3 {[%clk 00:26:49]} {[%emt
00:00:14]} d2 {[%clk 00:36:19]} {[%emt 00:00:17]} 36. Kxd2 {[%clk 00:27:12]}
{[%emt 00:00:06]} Kd4 {[%clk 00:36:45]} {[%emt 00:00:04]} 37. Kc2 {[%clk
00:26:53]} {[%emt 00:00:48]} Kc4 {[%clk 00:32:40]} {[%emt 00:04:36]} 38. b3+
{[%clk 00:26:45]} {[%emt 00:00:37]} Kc5 {[%clk 00:32:46]} {[%emt 00:00:25]} 39.
Kc3 {[%clk 00:26:26]} {[%emt 00:00:50]} Kd5 {[%clk 00:31:54]} {[%emt 00:01:21]}
40. b4 {[%clk 00:26:06]} {[%emt 00:00:50]} axb4+ {[%clk 00:31:50]} {[%emt
00:00:34]} 41. Kxb4 {[%clk 00:26:27]} {[%emt 00:00:09]} Kc6 {[%clk 00:32:18]}
{[%emt 00:00:02]} 42. a5 {[%clk 00:26:22]} {[%emt 00:00:34]} 1-0

[Event "ONJK DE"]
[Site "Enschede, Netherlands"]
[Date "2022.08.13"]
[Round "12.5"]
[White "Gang, Kevin Wan Ze"]
[Black "Klein Tuente, Sam"]
[Result "0-1"]
[TimeControl "40min + 30sec/move"]
[WhiteElo "1105"]
[BlackElo "1383"]

1. e4 {[%clk 00:40:58]} e6 {[%clk 00:40:50]} {[%emt 00:00:10]} 2. d4 {[%clk
00:41:25]} {[%emt 00:00:03]} d5 {[%clk 00:41:09]} {[%emt 00:00:12]} 3. e5
{[%clk 00:41:49]} {[%emt 00:00:06]} c5 {[%clk 00:41:21]} {[%emt 00:00:18]} 4.
Nf3 {[%clk 00:42:02]} {[%emt 00:00:16]} Nc6 {[%clk 00:41:21]} {[%emt 00:00:30]}
5. Be3 {[%clk 00:42:09]} {[%emt 00:00:24]} cxd4 {[%clk 00:40:26]} {[%emt
00:01:25]} 6. Bxd4 {[%clk 00:42:21]} {[%emt 00:00:17]} Bd7 {[%clk 00:39:38]}
{[%emt 00:01:19]} 7. Bd3 {[%clk 00:42:15]} {[%emt 00:00:36]} Nxd4 {[%clk
00:38:31]} {[%emt 00:01:38]} 8. Nxd4 {[%clk 00:42:30]} {[%emt 00:00:14]} Qg5
{[%clk 00:35:12]} {[%emt 00:03:49]} 9. Nf3 {[%clk 00:41:08]} {[%emt 00:01:52]}
Qxg2 {[%clk 00:34:35]} {[%emt 00:01:07]} 10. Rg1 {[%clk 00:41:26]} {[%emt
00:00:11]} Qh3 {[%clk 00:34:45]} {[%emt 00:00:20]} 11. Rg3 {[%clk 00:41:54]}
{[%emt 00:00:02]} Qh5 {[%clk 00:32:58]} {[%emt 00:02:15]} 12. Rg5 {[%clk
00:41:57]} {[%emt 00:00:29]} Qh6 {[%clk 00:32:14]} {[%emt 00:00:56]} 13. Rg4
{[%clk 00:41:10]} {[%emt 00:01:33]} Be7 {[%clk 00:31:00]} {[%emt 00:01:47]} 14.
Ke2 {[%clk 00:39:28]} {[%emt 00:02:11]} g6 {[%clk 00:29:52]} {[%emt 00:01:39]}
15. Qd2 {[%clk 00:37:47]} {[%emt 00:02:11]} Qxd2+ {[%clk 00:29:53]} {[%emt
00:00:30]} 16. Kxd2 {[%clk 00:38:10]} {[%emt 00:00:06]} Nh6 {[%clk 00:29:24]}
{[%emt 00:01:00]} 17. Rg1 {[%clk 00:37:59]} {[%emt 00:00:40]} Rc8 {[%clk
00:28:41]} {[%emt 00:01:14]} 18. Ke2 {[%clk 00:37:38]} {[%emt 00:00:50]} Bc6
{[%clk 00:24:33]} {[%emt 00:04:38]} 19. Nc3 {[%clk 00:37:26]} {[%emt 00:00:41]}
Kd7 {[%clk 00:22:22]} {[%emt 00:02:42]} 20. Bb5 {[%clk 00:37:25]} {[%emt
00:00:31]} Bxb5+ {[%clk 00:21:51]} {[%emt 00:01:02]} 21. Nxb5 {[%clk 00:37:45]}
{[%emt 00:00:09]} Rxc2+ {[%clk 00:22:03]} {[%emt 00:00:18]} 22. Ke3 {[%clk
00:37:38]} {[%emt 00:00:37]} Nf5+ {[%clk 00:21:23]} {[%emt 00:01:10]} 23. Kd3
{[%clk 00:37:10]} {[%emt 00:00:57]} Rxb2 {[%clk 00:20:10]} {[%emt 00:01:44]} 24.
Rgb1 {[%clk 00:36:41]} {[%emt 00:00:59]} Rxf2 {[%clk 00:19:39]} {[%emt
00:01:01]} 25. Ne1 {[%clk 00:36:33]} {[%emt 00:00:36]} a6 {[%clk 00:19:03]}
{[%emt 00:01:08]} 26. Na7 {[%clk 00:35:27]} {[%emt 00:01:35]} Rb8 {[%clk
00:18:22]} {[%emt 00:01:11]} 27. Rb3 {[%clk 00:35:21]} {[%emt 00:00:37]} Rxh2
{[%clk 00:17:38]} {[%emt 00:01:14]} 28. Rc1 {[%clk 00:35:31]} {[%emt 00:00:20]}
Rh3+ {[%clk 00:17:36]} {[%emt 00:00:32]} 0-1